Cogmind - Beta 14 @@@ ROGUE MODE // 2024.08.30 @ 02:12:29 Player: Schmee Result: Destroyed by 41-2VC(R) with Subdweller Laser Performance ------------- Evolutions (0) 0 Regions Visited (2) 400 Robots Destroyed (45) 225 Value Destroyed (1022) 1022 Prototype IDs (0) 0 Alien Tech Used (0) 0 Bonus (0) 0 TOTAL SCORE: 1647 Bonus ------- None Cogmind --------- Core Integrity 0/250 Matter 105/300 Energy 100/100 System Corruption 0% Temperature Cool (6) Movement Treading (160) Location -10/Subcaves Parts ------- > --- POWER (1) -------- (None) > --- PROPULSION (2) --- Improved Treads Improved Treads > --- UTILITY (2) ------ Large Storage Unit Seismic Detector > --- WEAPON (2) ------- Battle Rifle Grenade Launcher > --- INVENTORY (15) --- Subdweller Power Source Light Treads Light Treads Improved Heat Sink Medium Matter Pod (100) Structural Scanner Weapon Shielding Makeshift Light Armor Plating Battle Rifle Battle Rifle Battle Cannon Mining Laser Peak State ------------ > --- POWER ------------ Ion Engine > --- PROPULSION ------- Improved Treads Improved Treads > --- UTILITY ---------- Large Storage Unit Makeshift Light Armor Plating > --- WEAPON ----------- Subdweller Machine Gun Battle Cannon > --- INVENTORY -------- Ion Engine Light Treads Light Treads Improved Treads Improved Treads Improved Heat Sink Medium Storage Unit Medium Matter Pod Structural Scanner Seismic Detector Weapon Shielding Assault Rifle Battle Rifle Grenade Launcher Mining Laser [Rating: 16] Favorites ----------- Power Ion Engine Engine Ion Engine Propulsion Improved Treads Treads Improved Treads Leg Aluminum Leg Utility Large Storage Unit Device Seismic Detector Storage Large Storage Unit Protection Weapon Shielding Weapon Battle Cannon Energy Gun Medium Laser Ballistic Gun Battle Rifle Ballistic Cannon Battle Cannon Launcher Grenade Launcher Special Weapon Mining Laser Build | -11 -10 -10 ------- Run | Yrd Mat Sub Slots Evolved . | . . . Power . | . . . Propulsion . | . . . Utility . | . . . Weapon . | . . . Parts Attached 77 | . 27 50 Power 6 | . 4 2 Engine 6 | . 4 2 Core . | . . . Reactor . | . . . Propulsion 10 | . 8 2 Treads 9 | . 7 2 Leg 1 | . 1 . Wheel . | . . . Hover . | . . . Flight . | . . . Utility 36 | . 4 32 Device 20 | . . 20 Storage 3 | . 3 . Processor . | . . . Hackware . | . . . Protection 13 | . 1 12 Artifact . | . . . Weapon 25 | . 11 14 Energy Gun . | . . . Energy Cannon . | . . . Ballistic Gun 12 | . 5 7 Ballistic Cannon 5 | . 3 2 Launcher 5 | . 3 2 Special Weapon 3 | . . 3 Impact Weapon . | . . . Slashing Weapon . | . . . Piercing Weapon . | . . . Special Melee Weapon . | . . . Unidentified Prototypes . | . . . Parts Lost 5 | . . 5 Power 2 | . . 2 Propulsion 2 | . . 2 Utility . | . . . Weapon 1 | . . 1 Highest Loss Streak 3 | . . 3 To Critical Strikes . | . . . Average Slot Usage (%) 98 | . 97 99 Engine 13 | . 13 13 Treads 27 | . 25 28 Device 7 | . . 11 Storage 15 | . 18 14 Protection 3 | . 7 2 Ballistic Gun 11 | . 11 11 Ballistic Cannon 12 | . 11 13 Special Weapon 2 | . . 3 Peak Build Rating 16 | 6 12 16 Average Rating 11 | 6 9 12 On Entrance 8 | 6 6 12 Naked Turns . | . . . Heaviest Build 36 | 11 32 36 Greatest Support 46 | 20 46 46 Greatest Overweight (x) 1 | . 1 . Average Overweight (x) . | . . . Largest Inventory Capacity 15 | 8 15 15 Average Capacity 14 | 8 12 15 Most Carried 15 | 7 15 15 Average Carried 13 | 6 12 14 Final Capacity 15 | 8 15 15 Final Carried 15 | 7 15 12 Class Distribution -------------------- 100% | Mutant Dominant Class ---------------- Mutant | -10/Materials Mutant | -10/Subcaves Resources | -11 -10 -10 ----------- Run | Yrd Mat Sub Matter Collected 1780 | 203 752 825 Remotely . | . . . Salvage Created 1277 | 66 902 309 Parts 89 | 5 57 27 Haulers Intercepted 2 | . 2 . Recyclers Shooed 4 | . 4 . Parts Field Recycled . | . . . Retrieved Matter . | . . . Parts Self-Destructed 20 | . . 20 Prevented . | . . . Kills | -11 -10 -10 ------- Run | Yrd Mat Sub Combat Hostiles Destroyed 30 | . 15 15 Guns 7 | . 3 4 Cannons 11 | . 5 6 AOE 12 | . 7 5 Classes Destroyed 8 | 2 5 1 Builder 3 | . 3 . Tunneler 1 | 1 . . Hauler 2 | . 2 . Recycler 6 | 1 5 . Watcher 3 | . 3 . Swarmer 9 | . 6 3 Grunt 9 | . 9 . Subdweller 12 | . . 12 Best Kill Streak 3 | 2 3 3 Combat Bots Only 3 | . 3 3 Max Kills in Single Turn 3 | 1 3 3 Gunslinging . | . . . Exploded 3 | . 2 3 Melee . | . . . Uniques/NPCs Destroyed . | . . . Combat | -11 -10 -10 -------- Run | Yrd Mat Sub Hostile Shots Fired 147 | . 57 90 Missed 48 | . 20 28 Damage Taken 1638 | . 393 1245 Core 260 | . 77 183 Absorbed by Shields . | . . . Redirected to Shielding 40 | . 16 24 Regen/Repaired (Parts) 90 | . 90 . Core Remaining (%) 100 | 100 . . Volleys Fired 161 | 3 67 91 Largest 2 | 2 2 2 Hottest 100 | 70 70 100 Shots Fired 267 | 6 124 137 Gun 132 | 6 80 46 Cannon 86 | . 34 52 Launcher 18 | . 10 8 Special 31 | . . 31 Kinetic 192 | 3 91 98 Thermal 57 | 3 23 31 Explosive 18 | . 10 8 Electromagnetic . | . . . Robot Hit Streak 15 | 4 15 13 Robot Miss Streak 4 | . 4 3 Penetration Max . | . . . Secondary Targets . | . . . Shots Hit Robots 151 | 4 75 72 Core Hits 69 | 3 45 21 Critical Kills . | . . . Critical Parts Destroyed 1 | . 1 . Critical Strikes 2 | . 1 1 Destroy 1 | . 1 . Blast 1 | . . 1 Melee Attacks . | . . . Impact . | . . . Slashing . | . . . Piercing . | . . . Sneak Attacks . | . . . Combat Hostiles . | . . . Follow-up Attacks . | . . . Damage Inflicted 3069 | 44 1510 1515 Guns 1249 | 44 739 466 Cannons 932 | . 330 602 Explosions 879 | . 432 447 Melee . | . . . Ramming 9 | . 9 . Kinetic 1917 | 6 843 1068 Thermal 264 | 38 226 . Explosive 879 | . 432 447 Electromagnetic . | . . . Impact . | . . . Slashing . | . . . Piercing . | . . . Highest Corruption . | . . . Average Corruption . | . . . Corruption Purged . | . . . Corruption Blocked . | . . . Overload Shots . | . . . Overflow Damage 32 | . 4 28 Projectiles 4 | . 4 . Explosions 28 | . . 28 Melee . | . . . Knockbacks 12 | . 3 9 Impact . | . . . Kinetic 12 | . 3 9 Secondary . | . . . Self-Inflicted Damage 14 | . . 14 Shots 1 | . . 1 Rammed 3 | . 3 . Targets Rammed 4 | . 4 . Kicked 1 | . 1 . Crushed . | . . . Highest Temperature 170 | 50 170 3 Average Temperature 42 | 26 44 3 Received Heat Transfer 447 | . 171 276 Siege Activations . | . . . Robots Corrupted . | . . . Combat Hostiles . | . . . Parts Fried . | . . . Impact Corruptions . | . . . Robots Melted . | . . . Combat Hostiles . | . . . Parts Melted 1 | 1 . . Heat Transferred 777 | 111 666 . Parts Sabotaged . | . . . Parts Stolen . | . . . Parts Stripped . | . . . Power Chain Reactions . | . . . Alert | -11 -10 -10 ------- Run | Yrd Mat Sub Peak Influence 226 | 10 226 . Initial 6 | . 6 . Average 121 | 6 123 . Maximum Alert Level 1 | . 1 . Low Security (%) 95 | 100 95 . Level 1 4 | . 4 . Level 2 . | . . . Level 3 . | . . . Level 4 . | . . . Level 5 . | . . . High Security . | . . . Max Security . | . . . Squads Dispatched 2 | . 2 . Investigation 1 | . 1 . Extermination . | . . . Reinforcement 1 | . 1 . Assault . | . . . Garrison . | . . . Intercept . | . . . Searches Triggered . | . . . Construction Impeded . | . . . Haulers Reinforced . | . . . Active Scanning Responses . | . . . Cargo Convoy Interrupts . | . . . Stealth | -11 -10 -10 --------- Run | Yrd Mat Sub Distress Signals 1 | . 1 . Communications Jammed . | . . . Distress Signals . | . . . Times Spotted 44 | . 26 18 Peak Tracking Total 3 | . 3 3 Tactical Retreats 3 | . 3 . Traps | -11 -10 -10 ------- Run | Yrd Mat Sub Traps Triggered 6 | . 6 . Indirectly . | . . . Trap Hack Attempts . | . . . Triggered . | . . . Disarmed . | . . . Reprogrammed . | . . . Reused . | . . . Traps Extracted . | . . . Installed . | . . . Triggered . | . . . Machines | -11 -10 -10 ---------- Run | Yrd Mat Sub Machines Disabled 2 | . 1 1 Max in Single Turn 1 | . 1 1 Machines Repaired . | . . . Machines Dismantled . | . . . Machines Sabotaged . | . . . Overloaded Fab Kills . | . . . Hacking | -11 -10 -10 --------- Run | Yrd Mat Sub Machines Accessed 6 | . 5 1 Terminals 4 | . 4 . Fabricators . | . . . Repair Stations 1 | . 1 . Recycling Units . | . . . Scanalyzers . | . . . Garrison Access . | . . . Total Hacks 17 | . 13 4 Successful 8 | . 4 4 Failed 9 | . 9 . Catastrophic 1 | . 1 . Database Lockouts . | . . . Manual 7 | . 7 . Terminals 11 | . 11 . Fabricators . | . . . Repair Stations 2 | . 2 . Recycling Units . | . . . Scanalyzers . | . . . Garrison Access . | . . . Terminal Hacks 4 | . . 4 Record 4 | . . 4 Fabricator Hacks . | . . . Repair Station Hacks 2 | . 2 . Scan Component 1 | . 1 . Repair 1 | . 1 . Recycling Unit Hacks . | . . . Scanalyzer . | . . . Garrison Access Hacks . | . . . Unauthorized Hacks 2 | . 2 . Terminals 2 | . 2 . Botnet 2 | . 2 . Fabricators . | . . . Repair Stations . | . . . Recycling Units . | . . . Scanalyzers . | . . . Garrison Access . | . . . Data Cores Recovered . | . . . Used . | . . . Hacking Detections 5 | . 5 . Full Trace Events . | . . . Feedback Events . | . . . Feedback Blocked . | . . . Robot Schematics Acquired . | . . . Robots Built . | . . . Authchips . | . . . Time . | . . . Total Robot Build Rating . | . . . Part Schematics Acquired . | . . . Parts Built . | . . . Authchips . | . . . Time . | . . . Total Part Build Rating . | . . . Parts Repaired 1 | . 1 . Time 26 | . 26 . Parts Recycled . | . . . Recycled Matter . | . . . Retrieved Matter . | . . . Retrieved Components . | . . . Parts Scanalyzed . | . . . Part Schematics Acquired . | . . . Parts Damaged . | . . . Bothacking | -11 -10 -10 ------------ Run | Yrd Mat Sub Used RIF Installer . | . . . Robots Hacked . | . . . Non-combat . | . . . Combat . | . . . Robot Hacks Applied . | . . . Relay Couplers Released . | . . . Fabnet Peak Effective % . | . . . Robots Rewired . | . . . Allies Hacked . | . . . Hacks Repelled . | . . . Allies | -11 -10 -10 -------- Run | Yrd Mat Sub Total Allies . | . . . Largest Group . | . . . Highest-Rated Group . | . . . Highest-Rated Ally . | . . . Total Orders . | . . . Ally Attacks . | . . . Total Damage . | . . . Kills . | . . . Allies Corrupted . | . . . Allies Melted . | . . . Intel | -11 -10 -10 ------- Run | Yrd Mat Sub Robot Analysis Total . | . . . Derelict Logs Recovered 1 | . . 1 Drone Launches . | . . . Drone Recoveries . | . . . Exploration | -11 -10 -10 ------------- Run | Yrd Mat Sub Turns Passed 5375 | 35 1851 3489 Spaces Moved 2763 | 22 924 1817 Core . | . . . Treads 2650 | . 833 1817 Legs 113 | 22 91 . Wheels . | . . . Hover . | . . . Flight . | . . . Fastest Speed 120 | 120 120 160 Average Speed 158 | 120 156 160 Slowest Speed 240 | 120 240 160 Overloaded Moves . | . . . Propulsion Burnouts . | . . . Robots Hopped . | . . . Cave-ins Triggered . | . . . Exploration Rate (%) 53 | 3 88 69 Regions Visited 2 Branch Regions 1 Pre-discovered Areas 1 | . . 1 Known Exits Taken . | . . . Unknown Exits Taken 2 | 1 1 . Scrap Searched 4 | . . 4 Spaces Dug . | . . . Terrain Destroyed 69 | . 28 41 Melee . | . . . Projectile . | . . . AOE 69 | . 28 41 Terrain Rammed . | . . . Walls Destroyed . | . . . Machines Disabled . | . . . Actions | -11 -10 -10 --------- Run | Yrd Mat Sub Total 3434 | 25 1218 2191 Wait 375 | . 159 216 Move 2761 | 21 923 1817 Hop . | . . . Pick Up 24 | 1 17 6 Fast Attach 13 | . 12 1 Attach 8 | . 4 4 Detach 2 | . 2 . Swap 56 | . 11 45 Drop 26 | . 15 11 Fire 161 | 3 67 91 Melee . | . . . Ram . | . . . Kick 1 | . 1 . Crush 3 | . 3 . Escape Stasis . | . . . Rewire 4 | . 4 . Trap . | . . . Miscellaneous . | . . . Route ------- -11/Scrapyard -10/Materials (discovered 4 exits: [*Mat x2] / [*Min] / *Sub) -10/Subcaves (discovered 3 exits: *Mat x2 / [*Rec]) History --------- Turn | Location | Event 1 | -11/Scrapyard | Discovered new exit (range 2) 36 | -11/Scrapyard | Entered Materials 131 | -10/Materials | Discovered new exit (range 15) 301 | -10/Materials | Build established: Mutant 430 | -10/Materials | Discovered new exit (range 11) 1017 | -10/Materials | Repaired Lgt. Treads 1187 | -10/Materials | Discovered new exit (range 3) 1732 | -10/Materials | Discovered new exit (range 7) 1887 | -10/Materials | Entered Subcaves 1911 | -10/Subcaves | Shifting Twisted Machinery released Battle Rifle 1983 | -10/Subcaves | Shifting Twisted Machinery released Battle Rifle 2121 | -10/Subcaves | Discovered new exit (range 10) 2763 | -10/Subcaves | Discovered new exit (range 10) 2830 | -10/Subcaves | Core integrity fell below 50% 4453 | -10/Subcaves | Visited Clippyterm 4458 | -10/Subcaves | Identified exit to Materials 4458 | -10/Subcaves | Learned location of Section 7 (-2) 5084 | -10/Subcaves | Core integrity fell below 20% 5088 | -10/Subcaves | Lost 3 parts (2n1w) 5311 | -10/Subcaves | Ambushed by Subdwellers from Twisted Machinery 5376 | -10/Subcaves | Destroyed by 41-2VC(R) with Subdweller Laser Last Messages --------------- 05095_ 7B-PAG(u) builds Twisted Machinery. 05100_ Subatomizers dissect the Sub. Optics. 05106_ 7B-PAG(u) builds Twisted Machinery. 05163_ Acquired 37 matter. 05166_ Acquired Sub. Power Source. 05174_ Acquired 9 matter. 05201_ Acquired 6 matter. 05206_ Acquired 5 matter. 05265_ Acquired 12 matter. 05270_ Acquired 9 matter. 05276_ Acquired 15 matter. 05284_ Acquired 10 matter. 05303_ Acquired 13 matter. 05311_ C3-YVX(R) emerges from the Twisted Machinery. 05330_ Ion Engine destroyed. 05367_ C3-YVX(R) destroyed. 05370_ CS-7YK(R): "ARGHSUB!" 05370_ 41-2VC(R) affixes Scrap Shield Fragment to Scrap Shield. 05371_ CS-7YK(R) destroyed. 05375_ 41-2VC(R) affixes Scrap Shield Fragment to Scrap Shield. Map ----- +----------------------------------------------------+ | ????????????????????????????????????????????????## | | ?????????????????????????????????????????????????? | | ?????????????????????????????????????????????????? | | ?????????????????????????????????????????????????? | | ?????????????????????????????????????????????????? | | ?????????????????????????????????????????????????? | | ?????????????????????????????????????????????????? | | ??####???????????????????????????????????????????? | | ### ##??????????????????????????????????????????? | | ##?????????????????????????????????????????? | | ##??????#####????#######??####????????????? | | ##?##### ##??## ## ##?# ##???????????? | | ###### ### #??# #?# #??????????